fUSD/lending_fUSD_20250514
["ID","MTS","AMOUNT","RATE_DAILY","PERIOD"]
[361049854,1747217434909,-400.0,0.00010997,2]
[361049855,1747217434918,-400.0,0.00010997,2]
[361049856,1747217434927,-685.55,0.00010997,2]
[361049857,1747217434937,-400.0,0.00010997,2]
[361049858,1747217434947,-400.0,0.00010997,2]
[361049859,1747217434956,-400.0,0.00010997,2]
[361049860,1747217434966,-400.0,0.00010997,2]
[361049861,1747217434975,-400.0,0.00010997,2]
[361049862,1747217434985,-400.0,0.00010997,2]
[361049863,1747217434996,-400.0,0.00010997,2]
[361049864,1747217435006,-400.0,0.00010997,2]
[361049865,1747217435020,-400.0,0.00010997,2]
[361049866,1747217435030,-400.0,0.00010997,2]
[361049867,1747217435039,-400.0,0.00010997,2]
[361049868,1747217435049,-400.0,0.00010997,2]
[361049869,1747217435058,-400.0,0.00010997,2]
[361049870,1747217435069,-542.39257673,0.00010997,2]
[361049871,1747217435079,-400.0,0.00010997,2]
[361049872,1747217435090,-400.0,0.00010997,2]
[361049873,1747217435100,-400.0,0.00010997,2]
[361049874,1747217435110,-400.0,0.00010997,2]
[361049875,1747217435119,-400.0,0.00010997,2]
[361049876,1747217435129,-400.0,0.00010997,2]
[361049877,1747217435139,-728.53,0.00010997,2]
[361049878,1747217435149,-492.15187519,0.00010997,2]
[361049879,1747217435158,-400.0,0.00010997,2]
[361049880,1747217435167,-400.0,0.00010997,2]
[361049881,1747217435177,-400.0,0.00010997,2]
[361049882,1747217435187,-400.0,0.00010997,2]
[361049883,1747217435197,-400.0,0.00010997,2]
[361049884,1747217435207,-293.86221137,0.00010997,2]
[361049885,1747217435217,-400.0,0.00010997,2]
[361049886,1747217435226,-400.0,0.00010997,2]
[361049887,1747217435236,-400.0,0.00010997,2]
[361049888,1747217435246,-400.0,0.00010997,2]
[361049889,1747217435256,-400.0,0.00010997,2]
[361049890,1747217435265,-400.0,0.00010997,2]
[361049891,1747217435275,-400.0,0.00010997,2]
[361049892,1747217435285,-441.55,0.00010997,2]
[361049893,1747217435295,-400.0,0.00010997,2]
[361049894,1747217435305,-400.0,0.00010997,2]
[361049895,1747217435314,-400.0,0.00010997,2]
[361049896,1747217435323,-400.0,0.00010997,2]
[361049897,1747217435333,-400.0,0.00010997,2]
[361049898,1747217435343,-648.23,0.00010997,2]
[361049899,1747217435353,-400.0,0.00010997,2]
[361049900,1747217435363,-400.0,0.00010997,2]
[361049901,1747217435373,-400.0,0.00010997,2]
[361049902,1747217435383,-400.0,0.00010997,2]
[361049903,1747217435393,-400.0,0.00010997,2]
[361049904,1747217435403,-400.0,0.00010997,2]
[361049905,1747217435412,-400.0,0.00010997,2]
[361049906,1747217435422,-400.0,0.00010997,2]
[361049907,1747217435433,-400.0,0.00010997,2]
[361049908,1747217435443,-250.0,0.00010997,2]
[361049909,1747217435453,-400.0,0.00010997,2]
[361049910,1747217435463,-400.0,0.00010997,2]
[361049911,1747217435474,-400.0,0.00010997,2]
[361049912,1747217435483,-400.0,0.00010997,2]
[361049913,1747217435494,-400.0,0.00010997,2]
[361049914,1747217435503,-400.0,0.00010997,2]
[361049915,1747217435512,-400.0,0.00010997,2]
[361049916,1747217435521,-400.0,0.00010997,2]
[361049917,1747217435530,-400.0,0.00010997,2]
[361049918,1747217435540,-400.0,0.00010997,2]
[361049919,1747217435549,-400.0,0.00010997,2]
[361049920,1747217435558,-524.83949828,0.00010997,2]
[361049921,1747217435568,-400.0,0.00010997,2]
[361049922,1747217435578,-400.0,0.00010997,2]
[361049923,1747217435587,-400.0,0.00010997,2]
[361049924,1747217435597,-592.11,0.00010997,2]
[361049925,1747217435607,-400.0,0.00010997,2]
[361049926,1747217435616,-400.0,0.00010997,2]
[361049927,1747217435626,-400.0,0.00010997,2]
[361049928,1747217435635,-400.0,0.00010997,2]
[361049929,1747217435645,-400.0,0.00010997,2]
[361049930,1747217435655,-400.0,0.00010997,2]
[361049931,1747217435664,-400.0,0.00010997,2]
[361049932,1747217435674,-503.17,0.00010997,2]
[361049933,1747217435683,-492.22,0.00010997,2]
[361049934,1747217435693,-400.0,0.00010997,2]
[361049935,1747217435703,-400.0,0.00010997,2]
[361049936,1747217435713,-400.0,0.00010997,2]
[361049937,1747217435723,-535.03,0.00010997,2]
[361049938,1747217435733,-347.4174457,0.00010997,2]
[361049939,1747217435743,-400.0,0.00010997,2]
[361049940,1747217435753,-310.97054916,0.00010997,2]
[361049941,1747217435763,-400.0,0.00010997,2]
[361049942,1747217435772,-400.0,0.00010997,2]
[361049943,1747217435781,-400.0,0.00010997,2]
[361049944,1747217435791,-400.0,0.00010997,2]
[361049945,1747217435800,-400.0,0.00010997,2]
[361049946,1747217435809,-400.0,0.00010997,2]
[361049947,1747217435819,-400.0,0.00010997,2]
[361049948,1747217435828,-400.0,0.00010997,2]
[361049949,1747217435838,-400.0,0.00010997,2]
[361049950,1747217435848,-400.0,0.00010997,2]
[361049951,1747217435857,-400.0,0.00010997,2]
[361049952,1747217435867,-400.0,0.00010997,2]
[361049953,1747217435876,-400.0,0.00010997,2]
[361049954,1747217435885,-330.55014773,0.00010997,2]
[361049955,1747217435895,-400.0,0.00010997,2]
[361049956,1747217435904,-400.0,0.00010997,2]
[361049957,1747217435914,-400.0,0.00010997,2]
[361049958,1747217435924,-400.0,0.00010997,2]
[361049959,1747217435933,-400.0,0.00010997,2]
[361049960,1747217435943,-400.0,0.00010997,2]
[361049961,1747217435953,-400.0,0.00010997,2]
[361049962,1747217435963,-419.23,0.00010997,2]
[361049963,1747217435972,-400.0,0.00010997,2]
[361049964,1747217435982,-400.0,0.00010997,2]
[361049965,1747217435992,-400.0,0.00010997,2]
[361049966,1747217436002,-400.0,0.00010997,2]
[361049967,1747217436013,-593.98,0.00010997,2]
[361049968,1747217436030,-400.0,0.00010997,2]
[361049969,1747217436040,-400.0,0.00010997,2]
[361049970,1747217436049,-400.0,0.00010997,2]
[361049971,1747217436059,-400.0,0.00010997,2]
[361049972,1747217436069,-96.9471483,0.00010997,2]
[361049973,1747217436086,-303.0528517,0.00010997,2]
[361049974,1747217436096,-400.0,0.00010997,2]
[361049975,1747217436106,-400.0,0.00010997,2]
[361049976,1747217436114,-400.0,0.00010997,2]
[361049977,1747217436124,-400.0,0.00010997,2]
[361049978,1747217436133,-400.0,0.00010997,2]
[361049979,1747217436143,-400.0,0.00010997,2]
[361049980,1747217436155,-400.0,0.00010997,2]
[361049981,1747217436165,-400.0,0.00010997,2]
[361049982,1747217436174,-400.0,0.00010997,2]
[361049983,1747217436184,-400.0,0.00010997,2]
[361049984,1747217436193,-400.0,0.00010997,2]
[361049985,1747217436203,-400.0,0.00010997,2]
[361049986,1747217436212,-400.0,0.00010997,2]
[361049987,1747217436221,-400.0,0.00010997,2]
[361049988,1747217436231,-400.0,0.00010997,2]
[361049989,1747217436242,-400.0,0.00010997,2]
[361049990,1747217436251,-400.0,0.00010997,2]
[361049991,1747217436260,-400.0,0.00010997,2]
[361049992,1747217436269,-400.0,0.00010997,2]
[361049993,1747217436279,-900.57,0.00010997,2]
[361049994,1747217436288,-400.0,0.00010997,2]
[361049995,1747217436298,-400.0,0.00010997,2]
[361049996,1747217436308,-400.0,0.00010997,2]
[361049997,1747217436317,-400.0,0.00010997,2]
[361049998,1747217436327,-400.0,0.00010997,2]
[361049999,1747217436336,-462.3,0.00010997,2]
[361050000,1747217436346,-400.0,0.00010997,2]
[361050001,1747217436355,-400.0,0.00010997,2]
[361050002,1747217436365,-400.0,0.00010997,2]
[361050003,1747217436374,-1199.43,0.00010997,2]
[361050004,1747217436384,-460.64,0.00010997,2]
[361050005,1747217436393,-400.0,0.00010997,2]
[361050006,1747217436403,-1184.82,0.00010997,2]
[361050007,1747217436412,-400.0,0.00010997,2]
[361050008,1747217436421,-634.58,0.00010997,2]
[361050009,1747217436431,-765.5,0.00010997,2]
[361050010,1747217436439,-644.25,0.00010997,2]
[361050011,1747217436448,-1258.37,0.00010997,2]
[361050012,1747217436456,-400.0,0.00010997,2]
[361050013,1747217436464,-897.08,0.00010997,2]
[361050014,1747217436472,-400.0,0.00010997,2]
[361050015,1747217436481,-400.0,0.00010997,2]
[361050016,1747217436493,-534.45,0.00010997,2]
[361050017,1747217436503,-400.0,0.00010997,2]
[361050018,1747217436513,-400.0,0.00010997,2]
[361050019,1747217436523,-400.0,0.00010997,2]
[361050020,1747217436532,-3720.53,0.00010997,2]
[361050021,1747217436541,-400.0,0.00010997,2]
[361050022,1747217436551,-400.0,0.00010997,2]
[361050023,1747217436561,-581.29,0.00010997,2]
[361050024,1747217436570,-400.0,0.00010997,2]
[361050025,1747217436580,-400.0,0.00010997,2]
[361050026,1747217436592,-400.0,0.00010997,2]
[361050027,1747217436603,-1269.9,0.00010997,2]
[361050028,1747217436613,-400.0,0.00010997,2]
[361050029,1747217436622,-400.0,0.00010997,2]
[361050030,1747217436632,-415.55,0.00010997,2]
[361050031,1747217436643,-236.78065356,0.00010997,2]
[361050032,1747217436652,-1412.06,0.00010997,2]
[361050033,1747217436662,-400.0,0.00010997,2]
[361050034,1747217436671,-400.0,0.00010997,2]
[361050035,1747217436681,-400.0,0.00010997,2]
[361050036,1747217436690,-400.0,0.00010997,2]
[361050037,1747217436700,-400.0,0.00010997,2]
[361050038,1747217436709,-400.0,0.00010997,2]
[361050039,1747217436719,-819.47,0.00010997,2]
[361050040,1747217436729,-4090.97,0.00010997,2]
[361050041,1747217436739,-6801.70532042,0.00010997,2]
[361050042,1747217436752,-5709.9774238,0.00010997,2]
[361050044,1747217438348,-400.0,0.00010996,2]
[361050045,1747217438360,-400.0,0.00010996,2]
[361050046,1747217438370,-400.0,0.00010996,2]
[361050047,1747217438380,-400.0,0.00010997,2]
[361050048,1747217438390,-400.0,0.00010997,2]
[361050049,1747217438399,-400.0,0.00010997,2]
[361050050,1747217438409,-400.0,0.00010997,2]
[361050051,1747217438418,-456.61,0.00010997,2]
[361050052,1747217438426,-3593.26,0.00010997,2]
[361050053,1747217438435,-577.26,0.00010997,2]
[361050054,1747217438445,-400.0,0.00010997,2]
[361050055,1747217438457,-1892.67,0.00010997,2]
[361050056,1747217438467,-459.7,0.00010997,2]
[361050057,1747217438477,-400.0,0.00010997,2]
[361050058,1747217438488,-400.0,0.00010997,2]
[361050059,1747217438497,-592.25,0.00010997,2]
[361050060,1747217438507,-400.0,0.00010997,2]
[361050061,1747217438517,-400.0,0.00010997,2]
[361050062,1747217438527,-1643.85,0.00010997,2]
[361050063,1747217438538,-400.0,0.00010997,2]
[361050064,1747217438549,-7621.58,0.00010997,2]
[361050065,1747217438559,-400.0,0.00010997,2]
[361050066,1747217438569,-400.0,0.00010997,2]
[361050067,1747217438578,-400.0,0.00010997,2]
[361050068,1747217438588,-1232.47,0.00010997,2]
[361050069,1747217438598,-400.0,0.00010997,2]
[361050070,1747217438607,-412.87891309,0.00010997,2]
[361050071,1747217438617,-10016.3,0.00010997,2]
[361050073,1747217438627,-400.0,0.00010997,2]
[361050076,1747217438637,-400.0,0.00010997,2]
[361050078,1747217438647,-400.0,0.00010997,2]
[361050080,1747217438657,-400.0,0.00010997,2]
[361050082,1747217438667,-3925.1,0.00010997,2]
[361050083,1747217438678,-16295.90069689,0.00010997,2]
[361050086,1747217438690,-859.47930311,0.00010997,2]
[361050088,1747217438700,-400.0,0.00010997,2]
[361050090,1747217438710,-400.0,0.00010997,2]
[361050092,1747217438721,-2840.78,0.00010997,2]
[361050094,1747217438731,-400.0,0.00010997,2]
[361050097,1747217438740,-1926.85,0.00010997,2]
[361050099,1747217438749,-400.0,0.00010997,2]
[361050101,1747217438759,-2046.14,0.00010997,2]
[361050103,1747217438768,-400.0,0.00010997,2]
[361050104,1747217438777,-231.44138457,0.00010997,2]
[361050106,1747217438787,-151.0,0.00010997,2]
[361050107,1747217438796,-690.92,0.00010997,2]
[361050108,1747217438805,-400.0,0.00010997,2]
[361050109,1747217438815,-400.0,0.00010997,2]
[361050110,1747217438824,-151.0,0.00010997,2]
[361050111,1747217438833,-516.28,0.00010997,2]
[361050112,1747217438843,-400.0,0.00010997,2]
[361050113,1747217438852,-400.0,0.00010997,2]
[361050114,1747217438862,-380.96934552,0.00010997,2]
[361050115,1747217438871,-1562.270457,0.00010997,2]
[361050116,1747217438880,-400.0,0.00010997,2]
[361050117,1747217438890,-4129.3,0.00010997,2]
[361050118,1747217438900,-400.0,0.00010997,2]
[361050119,1747217438911,-714.76261795,0.00010997,2]
[361050120,1747217438924,-331.27783544,0.00010997,2]
[361050121,1747217438938,-497.32002807,0.00010997,2]
[361050130,1747217440534,-164.15,0.00010628,2]
[361050131,1747217440545,-18.90997554,0.00010997,2]
[361050132,1747217440554,-314.91029006,0.00010997,2]
[361050133,1747217440566,-272.51970994,0.00010997,2]
[361050134,1747217440575,-400.0,0.00010997,2]
[361050135,1747217440585,-91.81330094,0.00010997,2]
[361050136,1747217440600,-391.46,0.00010997,2]
[361050137,1747217440627,-6727.26500876,0.00010997,2]
[361050138,1747217440639,-436.74,0.00010997,2]
[361050139,1747217440651,-706.3679613,0.00010997,2]
[361050140,1747217440662,-614.704,0.00010997,2]
[361050141,1747217440679,-998.45221702,0.00010997,2]
[361050142,1747217440734,-139.50751198,0.00010997,2]
[361050143,1747217440745,-400.0,0.00010997,2]
[361050144,1747217440755,-400.0,0.00010997,2]
[361050145,1747217440765,-814.68,0.00010997,2]
[361050146,1747217440774,-1073.3,0.00010997,2]
[361050147,1747217440783,-310.568039,0.00010997,2]
[361050148,1747217440792,-1458.93,0.00010997,2]
[361050149,1747217440801,-151.0,0.00010997,2]
[361050150,1747217440810,-543.65,0.00010997,2]
[361050151,1747217440819,-400.0,0.00010997,2]
[361050152,1747217440828,-400.0,0.00010997,2]
[361050153,1747217440837,-400.0,0.00010997,2]
[361050154,1747217440846,-151.0,0.00010997,2]
[361050155,1747217440855,-310.568039,0.00010997,2]
[361050156,1747217440864,-400.0,0.00010997,2]
[361050157,1747217440872,-400.0,0.00010997,2]
[361050158,1747217440881,-400.0,0.00010997,2]
[361050159,1747217440890,-400.0,0.00010997,2]
[361050161,1747217440900,-400.0,0.00010997,2]
[361050163,1747217440909,-400.0,0.00010997,2]
[361050165,1747217440919,-76.46741037,0.00010997,2]
[361050211,1747217443458,-330.19126278,0.00010996,2]
[361050212,1747217443470,-69.80873722,0.00010996,2]
[361050213,1747217443480,-951.49126268,0.00010996,2]
[361050214,1747217443688,-281.83873732,0.00010996,2]
[361050215,1747217443699,-413.37,0.00010996,2]
[361050216,1747217443709,-772.36,0.00010996,2]
[361050217,1747217443719,-99.6043103,0.00010997,2]
[361050218,1747217443743,-223.92827933,0.00010997,2]
[361050219,1747217443754,-400.0,0.00010997,2]
[361050220,1747217443763,-517.88,0.00010997,2]
[361050221,1747217443773,-1315.54968474,0.00010997,2]
[361050222,1747217443800,-400.0,0.00010996,2]
[361050223,1747217443810,-650.3377325,0.00010997,2]
[361050225,1747217443825,-414.68001201,0.00010997,2]
[361050263,1747217446408,-616.41647788,0.00010997,2]
[361050264,1747217446420,-3920.72609287,0.00010997,2]
[361050265,1747217446430,-500.0,0.00010997,2]
[361050266,1747217446442,-400.0,0.00010997,2]
[361050267,1747217446453,-400.0,0.00010997,2]
[361050268,1747217446463,-1090.75,0.00010997,2]
[361050269,1747217446471,-3021.52,0.00010997,2]
[361050270,1747217446480,-242.645,0.00010997,2]
[361050271,1747217446490,-633.04,0.00010997,2]
[361050272,1747217446499,-614.0,0.00010997,2]
[361050273,1747217446508,-400.0,0.00010997,2]
[361050274,1747217446518,-275.891586,0.00010997,2]
[361050275,1747217446527,-2387.74165728,0.00010997,2]
[361050276,1747217446567,-608.37834272,0.00010997,2]
[361050277,1747217446576,-588.63,0.00010997,2]
[361050278,1747217446586,-859.06672323,0.00010997,2]
[361050279,1747217446596,-599.38775637,0.00010997,2]
[361050280,1747217446626,-719.010264,0.00010997,2]
[361050281,1747217446637,-3305.7852564,0.00010997,2]
[361050282,1747217446647,-400.0,0.00010997,2]
[361050283,1747217446656,-158.977633,0.00010997,2]
[361050284,1747217446666,-400.0,0.00010997,2]
[361050285,1747217446675,-400.0,0.00010997,2]
[361050286,1747217446685,-102.29662232,0.00010997,2]
[361050287,1747217446696,-660.87859099,0.00010997,2]
[361050288,1747217446713,-1027.9,0.00010997,2]
[361050289,1747217446785,-281.84892797,0.00010997,2]
[361050291,1747217646402,505.96,8.219e-05,2]
[361050292,1747217707369,150.0,0.00010085,7]
[361050296,1747218358523,168.93,9.894e-05,2]
[361050298,1747218470682,-300.0,9.961e-05,2]
[361050299,1747218470718,-500.0,9.961e-05,2]
[361050300,1747218470752,-500.0,9.961e-05,2]
[361050301,1747218470787,-276.79792017,9.961e-05,2]
[361050302,1747218470823,-500.0,9.961e-05,2]
[361050303,1747218470859,-500.0,9.961e-05,2]
[361050304,1747218470894,-500.0,9.961e-05,2]
[361050305,1747218470932,-500.0,9.961e-05,2]
[361050306,1747218470967,-500.0,9.961e-05,2]
[361050307,1747218471001,-500.0,9.961e-05,2]
[361050308,1747218471035,-500.0,9.961e-05,2]
[361050309,1747218471069,-500.0,9.961e-05,2]
[361050310,1747218471103,-500.0,9.961e-05,2]
[361050311,1747218471138,-500.0,9.961e-05,2]
[361050312,1747218471167,-1200.0,9.962e-05,2]
[361050313,1747218471196,-23900.0,9.963e-05,2]
[361050314,1747218471223,-450.0,0.0001,2]
[361050315,1747218471250,-157.37,0.00010017,2]
[361050316,1747218471276,-162.16,0.00010032,2]
[361050317,1747218471300,-721.94,0.00010054,2]
[361050318,1747218471326,-162.16,0.00010082,2]
[361050319,1747218471352,-1000.0,0.00010084,2]
[361050320,1747218471379,-6426.0,0.00010365,2]
[361050321,1747218471404,-505.96,0.0001048,2]
[361050322,1747218471429,-703.95,0.000107,2]
[361050323,1747218471456,-198.79402746,0.0001089,2]
[361050324,1747218471481,-2074.799,0.00010891,2]
[361050325,1747218471508,-187.41871806,0.00010891,2]
[361050326,1747218471534,-195.60281533,0.00010895,2]
[361050327,1747218471559,-187.41871806,0.00010898,2]
[361050328,1747218471585,-250.0,0.00010898,2]
[361050329,1747218471614,-10430.82757318,0.000109,2]
[361050330,1747218471640,-165.60855141,0.000109,2]
[361050331,1747218471666,-420.0,0.00010957,2]
[361050332,1747218471692,-1680.0,0.00010958,2]
[361050333,1747218471717,-500.0,0.00010959,2]
[361050334,1747218471744,-354.10056531,0.00010959,2]
[361050335,1747218471770,-186.30908686,0.00010973,2]
[361050336,1747218471949,-500.0,0.00010973,2]
[361050337,1747218471979,-500.0,0.00010973,2]
[361050338,1747218472005,-182.65252927,0.00010973,2]
[361050339,1747218472030,-500.0,0.00010973,2]
[361050340,1747218472057,-500.0,0.00010973,2]
[361050341,1747218472083,-500.0,0.00010973,2]
[361050342,1747218472107,-161.83154468,0.00010973,2]
[361050343,1747218472131,-160.39713971,0.00010973,2]
[361050344,1747218472156,-500.0,0.00010973,2]
[361050345,1747218472183,-500.0,0.00010973,2]
[361050346,1747218472208,-303.58326956,0.00010973,2]
[361050347,1747218472234,-15093.79765559,0.0001098,2]
[361050348,1747218472260,-2542.808,0.00010987,2]
[361050349,1747218472286,-165.214,0.00010987,2]
[361050350,1747218472312,-400.0,0.00010989,2]
[361050351,1747218472338,-400.0,0.00010989,2]
[361050352,1747218472366,-400.0,0.00010989,2]
[361050353,1747218472392,-364.57208966,0.0001099,2]
[361050354,1747218472420,-400.0,0.0001099,2]
[361050355,1747218472448,-400.0,0.0001099,2]
[361050356,1747218472475,-400.0,0.0001099,2]
[361050357,1747218472501,-400.0,0.0001099,2]
[361050358,1747218472527,-400.0,0.0001099,2]
[361050359,1747218472553,-400.0,0.0001099,2]
[361050360,1747218472579,-400.0,0.0001099,2]
[361050361,1747218472604,-400.0,0.0001099,2]
[361050362,1747218472630,-400.0,0.0001099,2]
[361050363,1747218472657,-400.0,0.0001099,2]
[361050364,1747218472684,-400.0,0.0001099,2]
[361050365,1747218472708,-400.0,0.0001099,2]
[361050366,1747218472734,-400.0,0.0001099,2]
[361050367,1747218472759,-400.0,0.0001099,2]
[361050368,1747218472785,-400.0,0.0001099,2]
[361050369,1747218472811,-250.0,0.0001099,2]
[361050370,1747218472837,-400.0,0.0001099,2]
[361050371,1747218472864,-400.0,0.0001099,2]
[361050372,1747218472890,-421.42398878,0.0001099,2]
[361050373,1747218472917,-400.0,0.0001099,2]
[361050374,1747218472942,-400.0,0.0001099,2]
[361050375,1747218472967,-400.0,0.0001099,2]
[361050376,1747218472992,-400.0,0.0001099,2]
[361050377,1747218473018,-400.0,0.0001099,2]
[361050378,1747218473043,-400.0,0.0001099,2]
[361050379,1747218473067,-400.0,0.0001099,2]
[361050380,1747218473098,-400.0,0.0001099,2]
[361050381,1747218473125,-400.0,0.0001099,2]
[361050382,1747218473152,-1688.981647,0.0001099,2]
[361050383,1747218473180,-153.98432,0.0001099,2]
[361050384,1747218473206,-400.0,0.0001099,2]
[361050385,1747218473231,-400.0,0.0001099,2]
[361050386,1747218473257,-538.89,0.0001099,2]
[361050387,1747218473283,-400.0,0.0001099,2]
[361050388,1747218473313,-283.198492,0.0001099,2]
[361050389,1747218473339,-400.0,0.0001099,2]
[361050390,1747218473366,-541.92172759,0.0001099,2]
[361050391,1747218473397,-400.0,0.0001099,2]
[361050392,1747218473424,-400.0,0.0001099,2]
[361050393,1747218473453,-400.0,0.0001099,2]
[361050394,1747218473478,-400.0,0.0001099,2]
[361050395,1747218473504,-400.0,0.0001099,2]
[361050396,1747218473531,-479.05,0.0001099,2]
[361050397,1747218473557,-400.0,0.0001099,2]
[361050398,1747218473582,-400.0,0.0001099,2]
[361050399,1747218473609,-511.28,0.0001099,2]
[361050400,1747218473633,-400.0,0.0001099,2]
[361050401,1747218473661,-400.0,0.0001099,2]
[361050402,1747218473688,-400.0,0.0001099,2]
[361050403,1747218473715,-400.93443814,0.0001099,2]
[361050404,1747218473741,-400.0,0.0001099,2]
[361050405,1747218473771,-400.0,0.0001099,2]
[361050406,1747218473798,-400.0,0.0001099,2]
[361050407,1747218473824,-400.0,0.0001099,2]
[361050408,1747218473851,-400.0,0.0001099,2]
[361050409,1747218474052,-433.93717482,0.0001099,2]
[361050410,1747218474079,-400.0,0.0001099,2]
[361050411,1747218474107,-400.0,0.0001099,2]
[361050412,1747218474132,-400.0,0.0001099,2]
[361050413,1747218474159,-400.0,0.0001099,2]
[361050414,1747218474183,-400.0,0.0001099,2]
[361050415,1747218474208,-697.67,0.0001099,2]
[361050416,1747218474233,-400.0,0.0001099,2]
[361050417,1747218474257,-335.93338206,0.0001099,2]
[361050418,1747218474281,-459.76921724,0.0001099,2]
[361050419,1747218474306,-400.0,0.0001099,2]
[361050420,1747218474331,-400.0,0.0001099,2]
[361050421,1747218474356,-400.0,0.0001099,2]
[361050422,1747218474386,-400.0,0.0001099,2]
[361050423,1747218474416,-400.0,0.0001099,2]
[361050424,1747218474443,-400.0,0.0001099,2]
[361050425,1747218474471,-400.0,0.0001099,2]
[361050426,1747218474499,-625.91,0.0001099,2]
[361050427,1747218474526,-1669.54,0.0001099,2]
[361050428,1747218474552,-400.0,0.0001099,2]
[361050429,1747218474578,-400.0,0.0001099,2]
[361050430,1747218474605,-400.0,0.0001099,2]
[361050431,1747218474638,-491.99,0.0001099,2]
[361050432,1747218474672,-400.0,0.0001099,2]
[361050433,1747218474700,-400.0,0.0001099,2]
[361050434,1747218474727,-400.0,0.0001099,2]
[361050435,1747218474754,-400.0,0.0001099,2]
[361050436,1747218474782,-400.0,0.0001099,2]
[361050437,1747218474809,-400.0,0.0001099,2]
[361050438,1747218474835,-400.0,0.0001099,2]
[361050439,1747218474867,-400.0,0.0001099,2]
[361050440,1747218474897,-400.0,0.0001099,2]
[361050441,1747218474925,-797.34,0.0001099,2]
[361050442,1747218474953,-400.0,0.0001099,2]
[361050443,1747218474979,-400.0,0.0001099,2]
[361050444,1747218475005,-400.0,0.0001099,2]
[361050445,1747218475030,-400.0,0.0001099,2]
[361050446,1747218475057,-400.0,0.0001099,2]
[361050447,1747218475083,-400.0,0.0001099,2]
[361050448,1747218475109,-400.0,0.0001099,2]
[361050449,1747218475135,-400.0,0.0001099,2]
[361050450,1747218475161,-400.0,0.0001099,2]
[361050451,1747218475186,-400.0,0.0001099,2]
[361050452,1747218475212,-704.35,0.0001099,2]
[361050453,1747218475238,-1217.93,0.0001099,2]
[361050454,1747218475264,-400.0,0.0001099,2]
[361050455,1747218475291,-400.0,0.0001099,2]
[361050456,1747218475316,-400.0,0.0001099,2]
[361050457,1747218475342,-400.0,0.0001099,2]
[361050458,1747218475369,-192.14229373,0.0001099,2]
[361050459,1747218475395,-400.0,0.0001099,2]
[361050460,1747218475424,-482.56,0.0001099,2]
[361050461,1747218475454,-400.0,0.0001099,2]
[361050462,1747218475482,-400.0,0.0001099,2]
[361050463,1747218475511,-632.3,0.0001099,2]
[361050464,1747218475542,-400.0,0.0001099,2]
[361050465,1747218475571,-400.0,0.0001099,2]
[361050466,1747218475599,-400.0,0.0001099,2]
[361050467,1747218475628,-400.0,0.0001099,2]
[361050468,1747218475657,-400.0,0.0001099,2]
[361050469,1747218475684,-693.15,0.0001099,2]
[361050470,1747218475712,-400.0,0.0001099,2]
[361050471,1747218475738,-400.0,0.0001099,2]